bitfinex-derivatives/quotes_BTCF0:USTF0_20250218
["timestamp","ask_amount","ask_price","bid_price","bid_amount"]
[1739893817628,0.00015713,95451.0,95449.0,0.2599731]
[1739893818542,0.00015713,95451.0,95449.0,0.2619731]
[1739893819143,0.00015713,95451.0,95449.0,0.0524]
[1739893819747,0.00015713,95451.0,95450.0,0.2095715]
[1739893820345,0.00015713,95451.0,95449.0,0.0524]
[1739893820847,0.00015713,95451.0,95450.0,0.2095715]
[1739893821253,0.00015713,95451.0,95450.0,0.2115715]
[1739893821749,0.00015713,95451.0,95450.0,0.2095715]
[1739893822545,0.00015713,95451.0,95450.0,0.2115715]
[1739893823043,0.3608,95465.0,95450.0,0.002]
[1739893823249,0.3608,95465.0,95463.0,0.2095419]
[1739893823448,0.12636256,95480.0,95464.0,0.1529]
[1739893823658,0.33586926,95480.0,95469.0,0.2095291]
[1739893823868,0.2095067,95480.0,95469.0,0.2095291]
[1739893824161,0.33586926,95480.0,95469.0,0.2095291]
[1739893824365,0.2095177,95475.0,95464.0,0.1529]
[1739893824568,0.12636256,95474.0,95464.0,0.1529]
[1739893824755,0.22137956,95475.0,95464.0,0.1529]
[1739893826156,0.3608,95465.0,95464.0,0.1529]
[1739893828366,0.001,95475.0,95464.0,0.1529]
[1739893828667,0.3608,95469.0,95464.0,0.1529]
[1739893829271,0.3608,95469.0,95467.0,0.2095338]
[1739893829969,0.2095366,95466.0,95464.0,0.0518]
[1739893830169,0.3608,95465.0,95464.0,0.001]
[1739893830469,0.2095407,95464.0,95463.0,0.00015713]
[1739893831172,0.3608,95465.0,95463.0,0.00015713]
[1739893831472,0.2095407,95464.0,95463.0,0.00015713]
[1739893832865,0.5095407,95464.0,95463.0,0.00015713]
[1739893833070,0.2095934,95440.0,95439.0,0.1553]
[1739893833266,0.5703934,95440.0,95439.0,0.1553]
[1739893834462,0.58250395,95440.0,95439.0,0.1553]
[1739893835062,0.00015713,95449.0,95439.0,0.1553]
[1739893835272,0.00015713,95449.0,95447.0,0.209578]
[1739893838081,0.00215713,95449.0,95447.0,0.209578]
[1739893840273,0.00215713,95449.0,95448.0,0.2095758]
[1739893842675,0.00015713,95449.0,95448.0,0.2095758]
[1739893842873,0.00315713,95449.0,95448.0,0.2095758]
[1739893845684,0.21273073,95449.0,95448.0,0.2095758]
[1739893845876,0.2095802,95446.0,95445.0,0.3608]
[1739893846583,0.00315713,95449.0,95448.0,0.2095758]
[1739893846978,0.05335713,95449.0,95448.0,0.2095758]
[1739893847178,0.05335713,95449.0,95445.0,0.3608]
[1739893847583,0.2115802,95446.0,95445.0,0.3608]
[1739893848583,0.2115802,95446.0,95439.0,0.1553]
[1739893848584,0.002,95446.0,95439.0,0.0525]
[1739893848879,0.2096001,95437.0,95435.0,0.01204254]
[1739893849083,0.2096001,95437.0,95431.0,0.2096124]
[1739893849285,0.2096001,95437.0,95433.0,0.9134]
[1739893849582,0.22134916,95437.0,95433.0,0.9134]
[1739893849783,0.103,95436.0,95430.0,0.00015713]
[1739893850287,0.2096112,95432.0,95430.0,0.00015713]
[1739893850585,0.0549,95431.0,95430.0,0.00015713]
[1739893851475,0.0529,95431.0,95430.0,0.00015713]
[1739893852986,0.2096633,95409.0,95400.0,0.2]
[1739893853187,0.3608,95401.0,95400.0,0.2]
[1739893853580,0.1042,95408.0,95400.0,0.2]
[1739893853885,0.3608,95402.0,95400.0,0.2]
[1739893854085,0.1042,95408.0,95400.0,0.2]
[1739893854485,0.003,95401.0,95400.0,0.4096813]
[1739893855381,0.005,95402.0,95400.0,0.2]
[1739893855879,0.0503,95401.0,95400.0,0.2]
[1739893856578,0.0503,95401.0,95400.0,0.4096813]
[1739893856778,0.005,95402.0,95400.0,0.7704813]
[1739893856979,0.005,95402.0,95400.0,0.4096813]
[1739893857399,0.004,95401.0,95400.0,0.2]
[1739893857782,0.2136791,95401.0,95400.0,0.2]
[1739893858186,0.2096791,95401.0,95400.0,0.2]
[1739893859080,0.007,95401.0,95400.0,0.2]
[1739893860176,0.007,95401.0,95400.0,0.4096813]
[1739893860582,0.007,95401.0,95400.0,0.4642813]
[1739893860789,0.007,95401.0,95400.0,0.5703813]
[1739893860991,0.007,95401.0,95400.0,0.5194813]
[1739893861289,0.007,95401.0,95400.0,0.4642813]
[1739893861992,0.007,95401.0,95400.0,0.4096813]
[1739893862496,0.007,95401.0,95400.0,0.2]
[1739893862689,0.1144,95401.0,95400.0,0.2]
[1739893865494,0.1144,95401.0,95376.0,0.4124]
[1739893865684,0.3608,95378.0,95375.0,0.0008]
[1739893865878,0.2097546,95367.0,95359.0,0.2708]
[1739893866091,0.2097846,95353.0,95352.0,1e-07]
[1739893866290,0.5705846,95353.0,95352.0,1e-07]
[1739893866492,0.3608,95353.0,95352.0,1e-07]
[1739893866995,0.37255489,95353.0,95352.0,1e-07]
[1739893869688,0.37655489,95353.0,95352.0,1e-07]
[1739893872698,0.01575489,95353.0,95352.0,1e-07]
[1739893873304,0.37655489,95353.0,95352.0,1e-07]
[1739893876406,0.58633949,95353.0,95352.0,1e-07]
[1739893876907,0.58533949,95353.0,95352.0,1e-07]
[1739893877099,0.37555489,95353.0,95352.0,1e-07]
[1739893877410,0.2098991,95301.0,95300.0,9e-08]
[1739893877604,0.2099313,95287.0,95285.0,0.02263964]
[1739893877907,0.3608,95286.0,95285.0,0.02207964]
[1739893878805,0.3724258,95286.0,95285.0,0.02207964]
[1739893880609,0.3608,95286.0,95285.0,0.23201404]
[1739893881311,0.3628,95286.0,95285.0,0.23201404]
[1739893882109,0.0001574,95296.0,95295.0,0.2099123]
[1739893883305,0.0001574,95296.0,95286.0,0.2099321]
[1739893883500,0.3608,95292.0,95285.0,0.02207964]
[1739893883701,0.00209883,95291.0,95290.0,0.2099215]
[1739893885713,0.0001574,95296.0,95295.0,0.2099123]
[1739893885900,0.0001574,95296.0,95290.0,0.3608]
[1739893886102,0.0001574,95296.0,95294.0,0.2099144]
[1739893888416,0.0031574,95296.0,95294.0,0.2099144]
[1739893890417,0.5706427,95327.0,95316.0,0.2098643]
[1739893890623,0.2098447,95326.0,95315.0,0.2098678]
[1739893890810,0.3608,95316.0,95308.0,0.2098833]
[1739893891011,0.3608,95316.0,95295.0,0.3608]
[1739893891216,0.3608,95316.0,95296.0,0.14124]
[1739893891418,0.3608,95316.0,95296.0,0.19464]
[1739893891618,0.3609574,95316.0,95311.0,0.2098763]
[1739893891916,0.3609574,95316.0,95296.0,0.1947974]
[1739893891917,0.0001574,95316.0,95314.0,0.2098687]
[1739893892317,0.0041574,95316.0,95314.0,0.2098687]
[1739893893714,0.0041574,95316.0,95311.0,0.3608]
[1739893894016,0.0041574,95316.0,95314.0,0.2098702]
[1739893894723,0.0041574,95316.0,95313.0,0.2098718]
[1739893894921,0.3608,95314.0,95302.0,0.91544]
[1739893895116,0.2098825,95309.0,95303.0,0.14096]
[1739893895315,0.2098825,95309.0,95302.0,0.00056]
[1739893895515,0.2098823,95309.0,95298.0,0.3608]
[1739893895727,0.2098823,95309.0,95306.0,5.952e-05]
[1739893895921,0.3608,95314.0,95306.0,0.20994702]
[1739893896226,0.5706708,95314.0,95309.0,0.2098812]
[1739893896626,0.3608,95314.0,95306.0,5.952e-05]
[1739893896831,0.2098832,95309.0,95306.0,5.952e-05]
[1739893897023,0.3608,95314.0,95307.0,0.2098854]
[1739893897219,0.3608,95314.0,95306.0,5.952e-05]
[1739893897619,0.0001574,95316.0,95315.0,0.2098683]
[1739893898320,0.0506,95340.0,95326.0,0.2098441]
[1739893898525,0.3608,95336.0,95329.0,0.2098359]
[1739893898723,0.3608,95336.0,95332.0,0.2098299]
[1739893899025,0.37269771,95336.0,95332.0,0.2098287]
[1739893899330,0.3608,95336.0,95324.0,0.3608]
[1739893899523,0.3608,95336.0,95325.0,0.3504058]
[1739893899827,0.3608,95336.0,95328.0,0.3608]
[1739893900026,0.3608,95336.0,95329.0,0.350396]
[1739893900222,0.3608,95336.0,95328.0,0.3608]
[1739893900417,0.3678,95336.0,95329.0,0.14104]
[1739893900622,0.3678,95336.0,95324.0,0.0001574]
[1739893900925,0.3608,95336.0,95324.0,0.2100043]
[1739893901123,0.3668,95336.0,95326.0,0.2098427]
[1739893901624,0.3668,95336.0,95328.0,0.2098389]
[1739893902031,0.3668,95336.0,95324.0,0.0001574]
[1739893902234,0.2098298,95333.0,95324.0,0.0001574]
[1739893902830,0.36744,95336.0,95324.0,0.0001574]
[1739893903029,0.3608,95325.0,95324.0,0.0001574]
[1739893904337,0.36636001,95336.0,95332.0,0.2098294]
[1739893904540,0.3658,95336.0,95330.0,0.2098347]
[1739893904741,0.3658,95336.0,95324.0,0.0001574]
[1739893905043,0.3608,95328.0,95324.0,0.0001574]
[1739893905237,0.005,95325.0,95324.0,0.0001574]
[1739893907238,0.3608,95328.0,95324.0,0.2100043]
[1739893907440,0.3608,95328.0,95324.0,0.0001574]
[1739893907641,0.3608,95328.0,95326.0,0.2098435]
[1739893909244,0.3608,95328.0,95326.0,0.21954022]
[1739893909541,0.0523,95343.0,95342.0,0.2098088]
[1739893911546,0.0092984,95345.0,95342.0,0.2098088]
[1739893912046,0.007,95343.0,95342.0,0.2098088]
[1739893913849,0.00787327,95362.0,95342.0,0.2098088]
[1739893913850,0.1063,95361.0,95360.0,0.2097692]
[1739893914844,0.00015731,95370.0,95360.0,0.3608]
[1739893915044,0.00015731,95370.0,95369.0,0.2097495]
[1739893915852,0.12687416,95390.0,95369.0,0.2097495]
[1739893915853,0.00923327,95384.0,95369.0,0.37031992]
[1739893916048,0.00923327,95384.0,95383.0,0.2097187]
[1739893916542,0.4684,95397.0,95377.0,0.3608]
[1739893916852,0.1076,95397.0,95395.0,0.2096914]
[1739893917255,0.10775731,95397.0,95395.0,0.2096914]
[1739893918045,0.00015731,95397.0,95395.0,0.2096914]
[1739893919555,0.00315731,95397.0,95395.0,0.2096914]
[1739893923156,0.00215731,95397.0,95395.0,0.2096914]
[1739893924244,0.00015731,95397.0,95395.0,0.2096914]
[1739893924449,0.00215731,95397.0,95395.0,0.2096914]
[1739893925144,0.1,95400.0,95393.0,0.3608]
[1739893925353,0.3608,95433.0,95421.0,0.2096351]
[1739893925556,0.0542,95430.0,95429.0,0.2096176]
[1739893926060,0.0542,95430.0,95429.0,0.5704176]
[1739893926248,0.0513,95443.0,95429.0,0.37048003]
[1739893926448,0.00968381,95445.0,95438.0,0.3608]
[1739893926754,0.00015722,95439.0,95438.0,0.5703978]
[1739893927350,0.11396353,95454.0,95438.0,0.3608]
[1739893927550,0.1045,95454.0,95438.0,0.3608]
[1739893927749,0.1045,95454.0,95440.0,0.19009573]
[1739893927948,0.1045,95454.0,95452.0,0.2095658]
[1739893928559,0.1115,95454.0,95452.0,0.2095658]
[1739893929455,0.00010186,95463.0,95446.0,0.3608]
[1739893929654,0.00010186,95463.0,95461.0,0.2095466]
[1739893930159,0.00010186,95463.0,95461.0,0.21894616]
[1739893931052,0.00010186,95463.0,95461.0,0.00939956]
[1739893931253,0.00010186,95463.0,95458.0,0.3608]
[1739893931451,0.2095305,95469.0,95458.0,0.3608]
[1739893931656,0.19009573,95470.0,95452.0,0.001]
[1739893931854,0.19009573,95470.0,95446.0,0.3608]
[1739893931855,0.2095502,95460.0,95446.0,0.3608]
[1739893932161,0.2095562,95457.0,95446.0,0.3608]
[1739893932357,0.1064,95456.0,95446.0,0.37032901]
[1739893933660,0.1064,95456.0,95446.0,0.57990821]
[1739893933960,0.1064,95456.0,95449.0,0.2095736]
[1739893934559,0.1064,95456.0,95446.0,0.37032901]
[1739893934863,0.209575,95449.0,95446.0,0.3608]
[1739893935070,0.2095774,95448.0,95446.0,0.3608]
[1739893935355,0.2095774,95448.0,95443.0,0.00015722]
[1739893935356,0.3608,95447.0,95443.0,0.00015722]
[1739893935953,0.1064,95456.0,95454.0,0.2095627]
[1739893936152,0.1064,95456.0,95446.0,0.001]
[1739893936349,0.1064,95456.0,95447.0,0.13612]
[1739893936556,0.2095605,95455.0,95447.0,0.13612]
[1739893936750,0.2095605,95455.0,95445.0,0.2095824]
[1739893936951,0.2095764,95448.0,95443.0,0.00015722]
[1739893937157,0.3608,95451.0,95443.0,0.00015722]
[1739893937461,0.2095846,95444.0,95443.0,0.00015722]
[1739893937959,0.2096122,95432.0,95420.0,0.2096361]
[1739893938160,0.0506,95431.0,95420.0,0.2096361]
[1739893938353,0.3135142,95431.0,95421.0,0.2096338]
[1739893938557,0.3608,95429.0,95412.0,0.21122588]
[1739893938755,0.3608,95421.0,95412.0,0.21122588]
[1739893938951,0.3608,95429.0,95412.0,0.00157178]
[1739893939160,0.00015692,95426.0,95423.0,0.3608]
[1739893939364,0.00015692,95426.0,95424.0,0.2096286]
[1739893939664,0.1039,95452.0,95423.0,0.3608]
[1739893939960,0.47394543,95452.0,95437.0,0.2095989]
[1739893940257,0.2095795,95447.0,95431.0,0.3608]
[1739893941158,0.0513,95446.0,95431.0,0.3608]
[1739893941364,0.0513,95446.0,95439.0,0.2095941]
[1739893942155,0.0513,95446.0,95439.0,0.3608]
[1739893942362,0.0513,95446.0,95445.0,0.2095824]
[1739893942563,0.05116001,95452.0,95451.0,0.2095693]
[1739893942867,0.0506,95452.0,95451.0,0.2095693]
[1739893943062,0.0494,95462.0,95447.0,0.3608]
[1739893943267,0.0494,95462.0,95458.0,0.2095527]
[1739893943567,0.0494,95462.0,95452.0,0.12655557]
[1739893943770,0.0494,95462.0,95452.0,0.2095658]
[1739893943960,0.0494,95462.0,95447.0,0.3608]
[1739893944155,0.0494,95462.0,95456.0,0.2095572]
[1739893944568,0.0494,95462.0,95458.0,0.001]
[1739893944761,0.0494,95462.0,95459.0,0.13544]
[1739893945471,0.0494,95462.0,95460.0,0.2095484]
[1739893945868,0.0494,95462.0,95461.0,0.3608]
[1739893946067,0.0494,95462.0,95461.0,0.49624]
[1739893946369,0.0499,95468.0,95461.0,0.49624]
[1739893946569,0.0499,95468.0,95461.0,0.3608]
[1739893946770,0.0499,95468.0,95466.0,0.2095348]
[1739893947374,0.0524,95480.0,95475.0,0.2095161]
[1739893947672,0.0529,95479.0,95478.0,0.3608]
[1739893947972,0.0524,95480.0,95478.0,0.57959455]
[1739893948173,0.00774348,95488.0,95487.0,0.2094902]
[1739893948574,0.0498,95489.0,95487.0,0.2094902]
[1739893948873,0.0524,95496.0,95494.0,0.2094737]
[1739893949170,0.00209435,95495.0,95494.0,0.2094737]
[1739893949367,0.00209435,95495.0,95490.0,0.2094835]
[1739893949570,0.00209435,95495.0,95487.0,0.3608]
[1739893951167,0.3608,95490.0,95483.0,0.91344]
[1739893951364,0.5702968,95484.0,95483.0,0.91344]
[1739893951573,0.2095166,95475.0,95469.0,0.00015713]
[1739893951876,0.5703166,95475.0,95469.0,0.00015713]
[1739893952467,0.3608,95475.0,95469.0,0.00015713]
[1739893952774,0.5703166,95475.0,95469.0,0.00015713]
[1739893953271,0.3608,95475.0,95455.0,0.3608]
[1739893953477,0.3608,95467.0,95456.0,0.13492]
[1739893953778,0.0514,95466.0,95452.0,0.3608]
[1739893954271,0.0514,95466.0,95458.0,0.2095537]
[1739893954476,0.06065809,95466.0,95452.0,0.3608]
[1739893955069,0.06065809,95466.0,95456.0,0.2095573]
[1739893955367,0.27019519,95466.0,95456.0,0.2095573]
[1739893955771,0.06065809,95466.0,95456.0,0.2095573]
[1739893955974,0.2095512,95460.0,95452.0,0.3608]
[1739893956167,0.06065809,95466.0,95452.0,0.3608]
[1739893956373,0.06065809,95466.0,95457.0,0.2095553]
[1739893956574,0.06065809,95466.0,95452.0,0.3608]
[1739893956575,0.0486,95465.0,95452.0,0.3608]
[1739893956765,0.0486,95465.0,95460.0,0.2095475]
[1739893956965,0.2581392,95465.0,95460.0,0.2095475]
[1739893957172,0.0486,95465.0,95460.0,0.2095475]
[1739893957473,0.0486,95465.0,95452.0,0.3608]
[1739893957680,0.0486,95465.0,95463.0,0.2095429]
[1739893959979,0.0486,95465.0,95463.0,0.21880321]
[1739893960181,0.0486,95465.0,95463.0,0.2095429]
[1739893960683,0.00015713,95469.0,95468.0,0.2095319]
[1739893961975,0.00015713,95469.0,95464.0,0.0509]
[1739893962181,0.00015713,95469.0,95460.0,0.3608]
[1739893962381,0.2095373,95466.0,95460.0,0.3608]
[1739893962680,0.2095373,95466.0,95462.0,0.209544]
[1739893962888,0.00015713,95469.0,95460.0,0.37028993]
[1739893963580,0.00015713,95469.0,95468.0,0.2095319]
[1739893965684,0.00015713,95469.0,95468.0,0.5703319]
[1739893965881,0.1048,95489.0,95480.0,0.2095056]
[1739893966081,0.1048,95489.0,95470.0,0.18984274]
[1739893966786,0.1048,95489.0,95483.0,0.2094975]
[1739893966978,0.1048,95489.0,95470.0,0.18984274]
[1739893967178,0.1048,95489.0,95485.0,0.2094942]
[1739893967780,0.0522,95492.0,95479.0,0.18984274]
[1739893968087,0.0522,95492.0,95478.0,0.3608]
[1739893968088,0.0522,95492.0,95490.0,0.2094823]
[1739893968385,0.2094825,95491.0,95482.0,0.2095011]
[1739893968589,0.2094825,95491.0,95485.0,0.001]
[1739893969095,0.0522,95492.0,95485.0,0.001]
[1739893969394,0.0522,95492.0,95486.0,0.13416]
[1739893969583,0.0522,95492.0,95488.0,0.2094873]
[1739893969889,0.0522,95492.0,95490.0,0.001]
[1739893970087,0.2616795,95492.0,95490.0,0.001]
[1739893973291,0.2095054,95481.0,95478.0,0.3608]
[1739893973489,0.2095054,95481.0,95475.0,0.00950221]
[1739893973490,0.12651067,95490.0,95475.0,0.00950221]
[1739893973707,0.33599477,95490.0,95470.0,0.00015713]
[1739893973992,0.2094887,95488.0,95470.0,0.1266678]
[1739893974187,0.2094887,95488.0,95470.0,0.13651568]
[1739893974387,0.0522,95492.0,95470.0,0.13651568]
[1739893974587,0.0522,95492.0,95489.0,0.2094855]
[1739893974894,0.0522,95492.0,95470.0,0.03651568]
[1739893975087,0.0522,95492.0,95488.0,0.2094878]
[1739893975988,0.2094886,95488.0,95478.0,0.3608]
[1739893976292,0.2094886,95488.0,95486.0,0.2094921]
[1739893976490,0.0522,95492.0,95487.0,0.2094892]
[1739893976990,0.0522,95492.0,95491.0,0.2094815]
[1739893979392,0.10015713,95500.0,95490.0,0.0523707]
[1739893979590,0.10015713,95500.0,95499.0,0.2094639]
[1739893979796,0.10015713,95500.0,95499.0,0.57973541]
[1739893979797,0.06361668,95500.0,95499.0,0.57973541]
[1739893980887,0.06361668,95500.0,95499.0,1.49293541]
[1739893981089,0.06361668,95500.0,95499.0,1.49393541]
[1739893981285,0.0528,95529.0,95499.0,1.28447151]
[1739893981593,0.0528,95529.0,95528.0,0.2094003]
[1739893982589,0.4691,95538.0,95528.0,0.3608]
[1739893982790,0.2093878,95534.0,95528.0,0.3608]
[1739893983094,0.2094128,95523.0,95519.0,0.36095705]
[1739893983292,0.2094168,95521.0,95519.0,0.00015705]
[1739893983491,0.4112,95520.0,95519.0,0.00015705]
[1739893983694,0.4634,95520.0,95519.0,0.00015705]
[1739893984390,0.209442,95509.0,95508.0,0.00157051]
[1739893985096,0.055,95509.0,95501.0,0.91368]
[1739893985395,0.5702573,95502.0,95501.0,0.91312]
[1739893985600,0.2094841,95490.0,95488.0,0.00157087]
[1739893985896,0.3608,95502.0,95488.0,0.00157087]
[1739893985897,0.3608,95494.0,95488.0,0.00157087]
[1739893986295,0.209479,95493.0,95488.0,0.00157087]
[1739893986991,0.3608,95494.0,95488.0,0.00157087]
[1739893987299,0.2094838,95490.0,95488.0,0.00157087]
[1739893987499,0.0527,95489.0,95488.0,0.00157087]
[1739893988091,0.0513,95501.0,95488.0,0.00157087]
[1739893988391,0.0534,95499.0,95494.0,0.5702742]
[1739893989106,0.0534,95499.0,95494.0,0.3608]
[1739893989403,0.0534,95499.0,95494.0,0.492]
[1739893989596,0.0534,95499.0,95494.0,0.1312]
[1739893989896,0.0534,95499.0,95496.0,0.20947]
[1739893990104,0.0534,95499.0,95493.0,0.3608]
[1739893990301,0.0534,95499.0,95494.0,0.1312]
[1739893991296,0.2094661,95498.0,95494.0,0.1312]
[1739893991600,0.0534,95499.0,95488.0,0.00157087]
[1739893991995,0.209472,95496.0,95488.0,0.00157087]
[1739893992397,0.0534,95499.0,95488.0,0.00157087]
[1739893992597,0.2094804,95492.0,95488.0,0.00157087]
[1739893992793,0.0511,95491.0,95488.0,0.00157087]
[1739893992995,0.0534,95499.0,95488.0,0.00157087]
[1739893993300,0.3608,95520.0,95510.0,0.2094393]
[1739893993494,0.0526,95511.0,95510.0,0.2094393]
[1739893993704,0.18968549,95540.0,95514.0,0.209431]
[1739893993899,0.0526,95529.0,95514.0,0.209431]
[1739893995201,0.3608,95522.0,95510.0,0.0541]
[1739893995499,0.2094191,95520.0,95509.0,0.37055644]
[1739893995806,0.3608,95523.0,95513.0,0.2094324]
[1739893996306,0.3608,95523.0,95514.0,0.001]
[1739893996803,0.2094184,95520.0,95514.0,0.001]
[1739893997405,0.3608,95523.0,95513.0,0.2104315]
[1739893998103,0.2094038,95527.0,95513.0,0.2104315]
[1739893998407,0.0551,95528.0,95513.0,0.2104315]
[1739893998901,0.0526,95529.0,95513.0,0.2104315]
[1739893998902,0.0526,95529.0,95514.0,0.0518]
[1739893999701,0.0526,95529.0,95514.0,0.1057]
[1739894000296,0.0526,95529.0,95514.0,0.1067]
[1739894000894,0.0526,95529.0,95514.0,0.1057]
[1739894001107,0.0526,95529.0,95514.0,0.1077]
[1739894002910,6e-08,95515.0,95514.0,0.1077]
[1739894003305,6e-08,95515.0,95514.0,0.4077]
[1739894003505,6e-08,95515.0,95514.0,0.4067]
[1739894004212,0.1055,95549.0,95530.0,0.18968549]
[1739894004509,0.1055,95549.0,95546.0,0.2093594]
[1739894004810,0.1055,95549.0,95546.0,0.2003594]
[1739894005406,0.1055,95549.0,95548.0,0.2093565]
[1739894005604,0.1055,95549.0,95548.0,0.21916684]
[1739894006004,0.1055,95549.0,95548.0,0.2093565]
[1739894007007,0.1055,95549.0,95548.0,0.21910315]
[1739894007311,0.0513,95549.0,95548.0,0.21910315]
[1739894007611,0.5701134,95568.0,95548.0,0.21910315]
[1739894007612,0.0508,95559.0,95558.0,0.2093346]
[1739894008917,0.0503,95567.0,95566.0,0.2093171]
[1739894009101,0.0503,95567.0,95566.0,0.5701171]
[1739894010912,0.0503,95567.0,95562.0,0.3608]
[1739894011709,0.0503,95567.0,95565.0,0.2093192]
[1739894012106,0.04905,95567.0,95565.0,0.2093192]
[1739894012414,0.12631924,95580.0,95565.0,0.2093192]
[1739894012710,0.00781837,95582.0,95570.0,0.3608]
[1739894012911,0.00781837,95582.0,95572.0,0.2093025]
[1739894013414,0.00781837,95582.0,95574.0,0.2092983]
[1739894013601,0.3608,95585.0,95570.0,0.48711924]
[1739894013802,0.3608,95585.0,95581.0,0.2092824]
[1739894014506,0.3608,95585.0,95583.0,0.2092785]
[1739894014708,0.1021,95586.0,95579.0,0.3608]
[1739894014915,0.1021,95586.0,95585.0,0.2092755]
[1739894015312,0.0508,95586.0,95585.0,0.2092755]
[1739894015509,0.0503,95596.0,95595.0,0.2092536]
[1739894015711,0.0503,95596.0,95595.0,0.5700536]
[1739894016013,0.0503,95596.0,95592.0,0.00974298]
[1739894016317,0.0503,95596.0,95588.0,0.2092679]
[1739894016911,0.0503,95596.0,95589.0,0.209266]
[1739894017115,0.0503,95596.0,95590.0,0.2092639]
[1739894017511,0.3608,95594.0,95586.0,0.00015696]
[1739894017710,0.2092711,95587.0,95586.0,0.00015696]
[1739894018311,0.5700576,95594.0,95586.0,0.00015696]
[1739894018919,0.209259,95593.0,95586.0,0.20942876]
[1739894019113,0.2092612,95592.0,95586.0,0.20942876]
[1739894019708,0.2092612,95592.0,95588.0,0.2092688]
[1739894020514,0.0503,95596.0,95591.0,0.3608]
[1739894020715,0.0503,95596.0,95595.0,0.2092536]
[1739894022513,0.1,95600.0,95599.0,0.2092448]
[1739894022821,0.1,95600.0,95599.0,0.5700448]
[1739894026620,0.1,95600.0,95599.0,0.5710448]
[1739894028021,0.1,95600.0,95599.0,0.3618]
[1739894028324,0.3092426,95600.0,95599.0,0.49104]
[1739894028523,0.3092426,95600.0,95599.0,0.3618]
[1739894028524,0.14138648,95600.0,95599.0,0.3618]
[1739894028826,0.50218648,95600.0,95599.0,0.001]
[1739894029216,0.2092628,95591.0,95586.0,0.20942926]
[1739894029422,0.0549,95590.0,95586.0,0.00015696]
[1739894029818,0.209267,95589.0,95586.0,0.00015696]
[1739894030018,0.209267,95589.0,95587.0,0.2092701]
[1739894030225,0.209267,95589.0,95586.0,0.00015696]
[1739894030226,0.2092705,95588.0,95586.0,0.00015696]
[1739894031122,0.2092705,95588.0,95586.0,0.00115696]
[1739894032324,0.0588,95587.0,95586.0,0.00115696]
[1739894033427,0.4196,95587.0,95586.0,0.00115696]
[1739894033627,0.209282,95582.0,95581.0,0.9128]
[1739894033825,0.4216,95587.0,95586.0,0.001]
[1739894034129,0.78296001,95587.0,95572.0,0.12832]
[1739894034330,0.3608,95574.0,95567.0,0.00966834]
[1739894034527,0.0549,95573.0,95564.0,0.00156912]
[1739894034724,0.2093164,95567.0,95564.0,0.00156912]
[1739894034925,0.2093041,95572.0,95565.0,0.2093184]
[1739894035232,0.2093088,95570.0,95567.0,0.2093144]
[1739894035433,0.0549,95573.0,95567.0,0.2093144]
[1739894035634,0.2093106,95569.0,95567.0,0.2093144]
[1739894036432,0.0549,95573.0,95571.0,0.2093042]
[1739894036635,0.3608,95574.0,95573.0,0.2093017]
[1739894037134,0.00015668,95578.0,95576.0,0.2092937]
[1739894038630,0.20944748,95578.0,95576.0,0.2092937]
[1739894038833,0.21344748,95578.0,95576.0,0.2092937]
[1739894039241,0.2092999,95574.0,95569.0,0.2093084]
[1739894039433,0.2092999,95574.0,95566.0,0.3608]
[1739894039629,0.12631924,95576.0,95566.0,0.3608]
[1739894039834,0.3608,95574.0,95566.0,0.3608]
[1739894040139,0.3608,95574.0,95567.0,0.1276]
[1739894040327,0.3608,95574.0,95572.0,0.2093036]
[1739894040636,0.00415668,95578.0,95577.0,0.209293]
[1739894040835,0.00015668,95578.0,95571.0,0.2093051]
[1739894041030,0.2092999,95574.0,95566.0,0.570117]
[1739894041227,0.2092999,95574.0,95570.0,0.2093081]
[1739894041431,0.00415668,95578.0,95575.0,0.2092971]
[1739894041635,0.00415668,95578.0,95576.0,0.209294]
[1739894041636,0.00015668,95578.0,95576.0,0.209294]
[1739894043431,0.00015668,95578.0,95577.0,0.3608]
[1739894044033,0.00015668,95578.0,95577.0,0.4205]
[1739894044235,0.0594,95583.0,95582.0,0.209282]
[1739894044641,0.0586,95606.0,95577.0,0.7813]
[1739894044837,0.055,95605.0,95598.0,0.3608]
[1739894045148,0.264233,95605.0,95595.0,0.2092517]
[1739894045346,0.055,95605.0,95598.0,0.3608]
[1739894045548,0.055,95605.0,95598.0,0.37061365]
[1739894046436,0.055,95605.0,95600.0,0.2092413]
[1739894046635,0.055,95605.0,95601.0,0.2092388]
[1739894046837,0.055,95605.0,95603.0,0.209235]
[1739894048641,0.058,95605.0,95603.0,0.209235]
[1739894048835,0.003,95605.0,95603.0,0.209235]
[1739894049239,0.003,95605.0,95604.0,0.2092339]
[1739894049843,0.003,95605.0,95603.0,0.001]
[1739894050044,0.003,95605.0,95604.0,0.12784]
[1739894051534,0.2092299,95606.0,95604.0,0.12784]
[1739894051735,0.003,95605.0,95604.0,0.001]
[1739894051942,0.003,95605.0,95604.0,0.12892]
[1739894052250,0.2092282,95607.0,95604.0,0.12792]
[1739894052450,0.003,95605.0,95604.0,0.001]
[1739894052646,0.003,95605.0,95604.0,0.12904]
[1739894053445,0.006,95605.0,95604.0,0.12904]
[1739894053641,0.006,95605.0,95604.0,0.001]
[1739894053847,0.006,95605.0,95604.0,0.12892]
[1739894054537,0.015878,95605.0,95604.0,0.12892]
[1739894054744,0.015878,95605.0,95604.0,0.001]
[1739894054949,0.006,95605.0,95604.0,0.001]
[1739894055751,0.2092301,95606.0,95600.0,0.12792]
[1739894055952,0.2092412,95601.0,95599.0,0.2092445]
[1739894056149,0.0569,95600.0,95599.0,0.2092445]
[1739894056857,0.2661431,95600.0,95598.0,0.37061365]
[1739894057243,0.0544,95599.0,95598.0,0.3608]
[1739894059247,0.0544,95599.0,95597.0,0.12756]
[1739894059453,0.209247,95598.0,95597.0,0.12756]
[1739894059657,0.2092509,95597.0,95595.0,0.209252]
[1739894059946,0.0574,95599.0,95597.0,0.2092491]
[1739894060346,0.0544,95599.0,95598.0,0.209247]
[1739894060551,0.0574,95599.0,95598.0,0.209247]
[1739894061145,0.2666448,95599.0,95598.0,0.209247]
[1739894061845,0.0574,95599.0,95592.0,0.00015696]
[1739894062050,0.2092561,95594.0,95593.0,0.2092579]